Cogmind - Beta 14 @@@ ROGUE MODE // 2024.08.13 @ 21:57:35 Player: JackieG Result: Destroyed by K0-0BB(R) with Subdweller Machine Gun Performance ------------- Evolutions (0) 0 Regions Visited (3) 600 Robots Destroyed (5) 25 Value Destroyed (183) 183 Prototype IDs (0) 0 Alien Tech Used (0) 0 Bonus (56) 56 TOTAL SCORE: 864 Bonus ------- Follower Combat Kills 56 Cogmind --------- Core Integrity 0/250 Matter 300/300 Energy 99/100 System Corruption 0% Temperature Cool (0) Movement Core (50) Location -10/Subcaves Parts ------- > --- POWER (1) -------- (None) > --- PROPULSION (2) --- (None) > --- UTILITY (2) ------ Structural Scanner > --- WEAPON (2) ------- Small Laser > --- INVENTORY (5) ---- Light Nuclear Core Aluminum Leg Improved Heat Sink Riot Gun Assault Rifle Peak State ------------ > --- POWER ------------ Ion Engine > --- PROPULSION ------- Carbon-fiber Leg Carbon-fiber Leg > --- UTILITY ---------- Small Storage Unit Structural Scanner > --- WEAPON ----------- Small Laser Assault Rifle > --- INVENTORY -------- Light Ion Engine Aluminum Leg Aluminum Leg Improved Heat Sink Terrain Scanner Terrain Scanner Assault Rifle Mining Laser [Rating: 12] Favorites ----------- Power Ion Engine Engine Ion Engine Propulsion Light Treads Treads Light Treads Leg Carbon-fiber Leg Utility Small Storage Unit Device Structural Scanner Storage Small Storage Unit Weapon Assault Rifle Energy Gun Small Laser Ballistic Gun Assault Rifle Special Weapon Mining Laser Build | -11 -10 -10 -10 ------- Run | Yrd Mat Min Sub Slots Evolved . | . . . . Power . | . . . . Propulsion . | . . . . Utility . | . . . . Weapon . | . . . . Parts Attached 18 | 6 3 8 1 Power 2 | 2 . . . Engine 2 | 2 . . . Core . | . . . . Reactor . | . . . . Propulsion 6 | 2 . 3 1 Treads 2 | 2 . . . Leg 4 | . . 3 1 Wheel . | . . . . Hover . | . . . . Flight . | . . . . Utility 3 | . 3 . . Device 2 | . 2 . . Storage 1 | . 1 . . Processor . | . . . . Hackware . | . . . . Protection . | . . . . Artifact . | . . . . Weapon 7 | 2 . 5 . Energy Gun 1 | . . 1 . Energy Cannon . | . . . . Ballistic Gun 4 | 2 . 2 . Ballistic Cannon . | . . . . Launcher . | . . . . Special Weapon 2 | . . 2 . Impact Weapon . | . . . . Slashing Weapon . | . . . . Piercing Weapon . | . . . . Special Melee Weapon . | . . . . Unidentified Prototypes . | . . . . Parts Lost 3 | . . . 3 Power . | . . . . Propulsion 2 | . . . 2 Utility . | . . . . Weapon 1 | . . . 1 Highest Loss Streak 3 | . . . 3 To Critical Strikes 1 | . . . 1 Average Slot Usage (%) 98 | . 97 99 96 Engine 13 | . 14 14 13 Treads 15 | . 28 12 . Leg 11 | . . 15 26 Device 13 | . 12 14 14 Storage 13 | . 12 14 13 Energy Gun 6 | . . 8 14 Ballistic Gun 18 | . 28 19 . Special Weapon 2 | . . . 13 Peak Build Rating 12 | 5 7 12 12 Average Rating 8 | 2 6 8 11 On Entrance 6 | . 5 7 12 Naked Turns . | . . . . Heaviest Build 14 | 8 14 14 13 Greatest Support 40 | 40 40 40 30 Greatest Overweight (x) 1 | . . . 1 Average Overweight (x) . | . . . . Largest Inventory Capacity 8 | 5 8 8 8 Average Capacity 7 | 5 7 8 7 Most Carried 8 | 5 6 8 8 Average Carried 6 | 2 4 7 7 Final Capacity 8 | 5 8 8 5 Final Carried 8 | 3 6 8 5 Class Distribution -------------------- 80% | Mutant 19% | Scavenger-Mutant Dominant Class ---------------- Mutant | -10/Materials Mutant | -10/Mines Scavenger-Mutant | -10/Subcaves Resources | -11 -10 -10 -10 ----------- Run | Yrd Mat Min Sub Matter Collected 495 | 260 102 123 10 Remotely . | . . . . Salvage Created 222 | . 162 60 . Parts 3 | . 2 1 . Haulers Intercepted . | . . . . Recyclers Shooed . | . . . . Parts Field Recycled . | . . . . Retrieved Matter . | . . . . Parts Self-Destructed . | . . . . Prevented . | . . . . Kills | -11 -10 -10 -10 ------- Run | Yrd Mat Min Sub Combat Hostiles Destroyed 6 | . 4 2 . Guns 6 | . 4 2 . Classes Destroyed 2 | . 1 1 . Grunt 5 | . 4 1 . Assembled 1 | . . 1 . Best Kill Streak 2 | . 2 1 . Combat Bots Only 2 | . 2 1 . Max Kills in Single Turn 1 | . 1 1 . Gunslinging . | . . . . Exploded . | . . . . Melee . | . . . . Uniques/NPCs Destroyed . | . . . . Combat | -11 -10 -10 -10 -------- Run | Yrd Mat Min Sub Hostile Shots Fired 75 | . 34 16 25 Missed 22 | . 9 6 7 Damage Taken 987 | . 357 127 503 Core 261 | . 36 . 225 Absorbed by Shields . | . . . . Core Remaining (%) 100 | 100 . . . Volleys Fired 42 | . 22 17 3 Largest 2 | . 2 2 1 Hottest 100 | . 40 100 100 Shots Fired 74 | . 44 27 3 Gun 64 | . 44 20 . Cannon . | . . . . Launcher . | . . . . Special 10 | . . 7 3 Kinetic 61 | . 44 17 . Thermal 13 | . . 10 3 Explosive . | . . . . Electromagnetic . | . . . . Robot Hit Streak 9 | . 9 4 . Robot Miss Streak 3 | . 3 2 . Penetration Max . | . . . . Secondary Targets 1 | . 1 . . Max Gunslinging Chain 1 | . 1 . . Shots Hit Robots 42 | . 32 10 . Core Hits 15 | . 11 4 . Critical Kills 1 | . . 1 . Critical Parts Destroyed . | . . . . Critical Strikes 1 | . . 1 . Destroy 1 | . . 1 . Melee Attacks . | . . . . Impact . | . . . . Slashing . | . . . . Piercing . | . . . . Sneak Attacks . | . . . . Combat Hostiles . | . . . . Follow-up Attacks . | . . . . Damage Inflicted 465 | . 356 109 . Guns 465 | . 356 109 . Cannons . | . . . . Explosions . | . . . . Melee . | . . . . Ramming . | . . . . Kinetic 444 | . 356 88 . Thermal 21 | . . 21 . Explosive . | . . . . Electromagnetic . | . . . . Impact . | . . . . Slashing . | . . . . Piercing . | . . . . Highest Corruption . | . . . . Average Corruption . | . . . . Corruption Purged . | . . . . Corruption Blocked . | . . . . Overload Shots . | . . . . Overflow Damage . | . . . . Projectiles . | . . . . Explosions . | . . . . Melee . | . . . . Knockbacks . | . . . . Impact . | . . . . Kinetic . | . . . . Secondary . | . . . . Self-Inflicted Damage . | . . . . Shots . | . . . . Rammed . | . . . . Targets Rammed . | . . . . Kicked . | . . . . Crushed . | . . . . Highest Temperature 24 | . 18 24 . Average Temperature 11 | . 10 13 . Received Heat Transfer 270 | . 207 39 24 Siege Activations . | . . . . Robots Corrupted . | . . . . Combat Hostiles . | . . . . Parts Fried . | . . . . Impact Corruptions . | . . . . Robots Melted . | . . . . Combat Hostiles . | . . . . Parts Melted . | . . . . Heat Transferred 50 | . . 50 . Parts Sabotaged . | . . . . Parts Stolen . | . . . . Parts Stripped . | . . . . Power Chain Reactions . | . . . . Alert | -11 -10 -10 -10 ------- Run | Yrd Mat Min Sub Peak Influence 160 | . 160 114 . Initial 1 | . . 1 . Average 30 | . 51 15 . Maximum Alert Level . | . . . . Low Security (%) 100 | 100 100 100 . Level 1 . | . . . . Level 2 . | . . . . Level 3 . | . . . . Level 4 . | . . . . Level 5 . | . . . . High Security . | . . . . Max Security . | . . . . Squads Dispatched 2 | . 1 1 . Investigation . | . . . . Extermination . | . . . . Reinforcement 1 | . 1 . . Assault 1 | . . 1 . Garrison . | . . . . Intercept . | . . . . Searches Triggered . | . . . . Construction Impeded . | . . . . Haulers Reinforced . | . . . . Active Scanning Responses . | . . . . Cargo Convoy Interrupts . | . . . . Stealth | -11 -10 -10 -10 --------- Run | Yrd Mat Min Sub Distress Signals . | . . . . Communications Jammed . | . . . . Distress Signals . | . . . . Times Spotted 23 | . 7 9 7 Peak Tracking Total 6 | . 2 3 6 Tactical Retreats 1 | . 1 . . Traps | -11 -10 -10 -10 ------- Run | Yrd Mat Min Sub Traps Triggered 2 | . . . 2 Indirectly . | . . . . Trap Hack Attempts . | . . . . Triggered . | . . . . Disarmed . | . . . . Reprogrammed . | . . . . Reused . | . . . . Traps Extracted . | . . . . Installed . | . . . . Triggered . | . . . . Machines | -11 -10 -10 -10 ---------- Run | Yrd Mat Min Sub Machines Disabled . | . . . . Max in Single Turn . | . . . . Machines Repaired . | . . . . Machines Dismantled . | . . . . Machines Sabotaged . | . . . . Overloaded Fab Kills . | . . . . Hacking | -11 -10 -10 -10 --------- Run | Yrd Mat Min Sub Machines Accessed 2 | . 2 . . Terminals 2 | . 2 . . Fabricators . | . . . . Repair Stations . | . . . . Recycling Units . | . . . . Scanalyzers . | . . . . Garrison Access . | . . . . Total Hacks 7 | . 7 . . Successful 4 | . 4 . . Failed 3 | . 3 . . Catastrophic . | . . . . Database Lockouts . | . . . . Manual 7 | . 7 . . Terminals 7 | . 7 . . Fabricators . | . . . . Repair Stations . | . . . . Recycling Units . | . . . . Scanalyzers . | . . . . Garrison Access . | . . . . Terminal Hacks 1 | . 1 . . Record 1 | . 1 . . Fabricator Hacks . | . . . . Repair Station Hacks . | . . . . Recycling Unit Hacks . | . . . . Scanalyzer . | . . . . Garrison Access Hacks . | . . . . Unauthorized Hacks 3 | . 3 . . Terminals 3 | . 3 . . Assimilate 1 | . 1 . . Botnet 2 | . 2 . . Fabricators . | . . . . Repair Stations . | . . . . Recycling Units . | . . . . Scanalyzers . | . . . . Garrison Access . | . . . . Data Cores Recovered . | . . . . Used . | . . . . Hacking Detections 2 | . 2 . . Full Trace Events . | . . . . Feedback Events . | . . . . Feedback Blocked . | . . . . Robot Schematics Acquired . | . . . . Robots Built . | . . . . Authchips . | . . . . Time . | . . . . Total Robot Build Rating . | . . . . Part Schematics Acquired . | . . . . Parts Built . | . . . . Authchips . | . . . . Time . | . . . . Total Part Build Rating . | . . . . Parts Repaired . | . . . . Time . | . . . . Parts Recycled . | . . . . Recycled Matter . | . . . . Retrieved Matter . | . . . . Retrieved Components . | . . . . Parts Scanalyzed . | . . . . Part Schematics Acquired . | . . . . Parts Damaged . | . . . . Bothacking | -11 -10 -10 -10 ------------ Run | Yrd Mat Min Sub Used RIF Installer . | . . . . Robots Hacked . | . . . . Non-combat . | . . . . Combat . | . . . . Robot Hacks Applied . | . . . . Relay Couplers Released . | . . . . Fabnet Peak Effective % . | . . . . Robots Rewired . | . . . . Allies Hacked . | . . . . Hacks Repelled . | . . . . Allies | -11 -10 -10 -10 -------- Run | Yrd Mat Min Sub Total Allies 3 | . . 3 . Largest Group 2 | . . 2 2 Highest-Rated Group 46 | . . 46 46 Highest-Rated Ally 31 | . . 31 31 Total Orders . | . . . . Ally Attacks 15 | . . 14 1 Total Damage 149 | . . 149 . Kills 4 | . . 4 . Allies Corrupted . | . . . . Allies Melted . | . . . . Intel | -11 -10 -10 -10 ------- Run | Yrd Mat Min Sub Robot Analysis Total . | . . . . Derelict Logs Recovered . | . . . . Drone Launches . | . . . . Drone Recoveries . | . . . . Exploration | -11 -10 -10 -10 ------------- Run | Yrd Mat Min Sub Turns Passed 1255 | 67 439 515 234 Spaces Moved 716 | 38 178 321 179 Core 24 | 5 . . 19 Treads 320 | 33 178 109 . Legs 372 | . . 212 160 Wheels . | . . . . Hover . | . . . . Flight . | . . . . Fastest Speed 50 | 50 160 120 50 Average Speed 135 | 145 160 133 112 Slowest Speed 190 | 160 160 160 190 Overloaded Moves . | . . . . Propulsion Burnouts . | . . . . Robots Hopped . | . . . . Cave-ins Triggered . | . . . . Exploration Rate (%) 29 | 3 23 76 15 Regions Visited 3 Branch Regions 2 Pre-discovered Areas . | . . . . Known Exits Taken . | . . . . Unknown Exits Taken 3 | 1 1 1 . Scrap Searched 1 | . . 1 . Spaces Dug . | . . . . Terrain Destroyed 1 | . . 1 . Melee . | . . . . Projectile 1 | . . 1 . AOE . | . . . . Terrain Rammed . | . . . . Walls Destroyed . | . . . . Machines Disabled . | . . . . Actions | -11 -10 -10 -10 --------- Run | Yrd Mat Min Sub Total 921 | 48 291 378 204 Wait 120 | . 86 22 12 Move 713 | 37 177 320 179 Hop . | . . . . Pick Up 15 | 5 3 5 2 Fast Attach 8 | 3 2 3 . Attach 4 | 2 . 1 1 Detach . | . . . . Swap 6 | 1 1 4 . Drop 13 | . . 6 7 Fire 42 | . 22 17 3 Melee . | . . . . Ram . | . . . . Kick . | . . . . Crush . | . . . . Escape Stasis . | . . . . Rewire . | . . . . Trap . | . . . . Miscellaneous . | . . . . Route ------- -11/Scrapyard -10/Materials -10/Mines (discovered 3 exits: [*Mat x2] / [*Sub]) -10/Subcaves History --------- Turn | Location | Event 5 | -11/Scrapyard | Discovered new exit (range 15) 68 | -11/Scrapyard | Entered Materials 300 | -10/Materials | Build established: Mutant 470 | -10/Materials | Discovered new exit (range 16) 507 | -10/Materials | Entered Mines 520 | -10/Mines | Met a Derelict bent on vengeance 546 | -10/Mines | Excavation squad dispatched 546 | -10/Mines | A large section of the Mines collapsed 575 | -10/Mines | Discovered new exit (range 10) 974 | -10/Mines | Discovered new exit (range 10) 975 | -10/Mines | Met a Derelict testing a Signal Generator 991 | -10/Mines | Discovered new exit (range 8) 1022 | -10/Mines | Entered Subcaves 1022 | -10/Subcaves | Accompanied by 2 allies 1082 | -10/Subcaves | Shifting Twisted Machinery released Riot Gun 1163 | -10/Subcaves | Ambushed by swarm of Subdwellers 1238 | -10/Subcaves | Lost 5 allies 1247 | -10/Subcaves | Core integrity fell below 50% 1249 | -10/Subcaves | Core integrity fell below 20% 1256 | -10/Subcaves | Destroyed by K0-0BB(R) with Subdweller Machine Gun Last Messages --------------- HV Slug penetrates Twisted Machinery. M3-QLF(g): "Sorry we're late! Had another grouchy Sub to deal with. Who's the new fellow?" YZ-8KE(g) destroyed. B1-DF7(h) suffers critical hit (Destroy). B1-DF7(h) destroyed. 98-J57(g) destroyed. SU-9Q5(R) destroyed. 1N-B4Z(z) destroyed. Critical hit (Destroy). Carbon-fiber Leg destroyed. Mining Laser destroyed. Dropped Aluminum Leg. Dropped Assault Rifle. Dropped Sml. Storage Unit. Dropped Ion Engine. Triggered Piercing Trap. Spikes shoot up from the floor. Critical hit (Impale). Map ----- +----------------------------------------------------+ | ???????## ??????????????????????????????????? | | ???????## ??????????????????????????????????? | | ????????## ??????????????????????????????????? | | ????????## ####??????????????????????????????? | | ???????### #####??????????????????????????????? | | ???????### ## ##??????????????????????????????? | | ???###### ##??????????????????????????????? | | ?######## ##??????????????????????????????? | | #### ### ##??????????????????????????????? | | ### ####### ###??????????????????????????????? | | ## ##### ############??????????????????????? | | #&"!%!& ## ############??????????????????????? | | #"""[!!]=[=&% ### #### ###?????????????????????? | | ##### !!%=! # ####???????####?????????? | | ##### ]%! # ^ ####?##########????????? | | # &! ### ########## ###????????? | | ### ##### ### ###???????? | | ^ ### #### ### ###???????? | | # ####### ## ###??????? | | # ^ ######## * #####????? | | #### ####?### %= ####????? | | ##### ######### ^= ##????? | | ??### "### #### ##????? | | ??## "### ## ## ###????? | | ??### "#### ## #######????? | | ??### "##### ### @ ########???? | | ???## ###### ####### R ## ###???? | | ???## ##### ###### ###RR ##???? | | ???#### ##### ####### ###???? | | ??###### ### #### ####### ###???? | | ??## ## #### ##### ###### ##????? | | ??## ##### ######### ##????? | | ??### ##### ##### ! ###????? | | ??### #### #### =[ ###????? | | ???### #### ##### * ##?????? | | ???### ##### ###### ### ###?????? | | ???## ## ###### ########?## ########?????? | | ???## ### #?### ########??### ########??????? | | ???## #### ### ################?????????### | | ???### ##### #####" ## ############??????####### | | ???######## ### " ####????????####### | | ????#####"" " " ############## ### | | ??????????? " " " ### ### ############ % | | ???????????##" ##"""" ####### #### | | ???????????####" !! ######## ## ### | | ???????????"#### " " ##???### ### #### | | ??????????????## ##???## ## ##! ##### | | ??????????????##" & ##??### ######### ##### | | ??????????????## #"###?#### ######## # ## ? # | | ????????????? "#########?### ##??### " ? | +----------------------------------------------------+ Best States ------------- Heat Dissipation 25 Energy Generation 10 Energy Capacity 250 Matter Stores 300 Matter Capacity 300 Sight Range 16 Terrain Scan Range 14 Terrain Scan Density 10 Evasion (%) 55 Recoil Reduction 2 Item Schematics ----------------- None Robot Schematics ------------------ None Fabricated ------------ Nothing Alien Tech Used ----------------- None Achievements -------------- None Challenges ------------ None Game ------ Seed SigixCentriumStatue Manual? 0 Play Time 00:20:34 Cumulative 36.7 hours Start 2024.08.13 @ 21:37:50 End 2024.08.13 @ 21:57:35 Sessions 1 Manual Loads 0 Difficulty Rogue Special Mode None Game No. 36 Rogue 33 Adventurer 3 Explorer 0 Win Type - Total 0 Types 0/0/0/0/0/0/0/0/0 Lore% 20 Gallery% 33 Achievement% 30 Wizard Run 0 Options --------- Layout 1 ASCII 0 Keyboard 0 Movement Mouse Keybinds 0 Fullscreen 1 Font 24/Smallcaps Map View 50x35 Zoom Use 0% Tactical HUD 0 Map Filters NONE Filters NONE Steam 1 RUN: 63070b66-358f-45c8-a62e-07a79861e9b6